[Event "*** Titled Tuesday Blitz"]
[Site "Chess.com"]
[Date "2019.05.07"]
[Round "4"]
[White "FancyPlaySyndrome"]
[Black "murmah2003"]
[Result "1-0"]
[WhiteElo "2525"]
[BlackElo "2653"]
[TimeControl "180+2"]
[EndTime "13:58:19 PDT"]
[Termination "FancyPlaySyndrome won on time"]

1. e4 {[%clk 0:03:01.9]} 1... c5 {[%clk 0:02:55.7]} 2. Nf3 {[%clk 0:03:03.2]}
2... d6 {[%clk 0:02:56.3]} 3. d4 {[%clk 0:03:04.7]} 3... cxd4 {[%clk 0:02:57.5]}
4. Nxd4 {[%clk 0:03:06.6]} 4... Nf6 {[%clk 0:02:59.1]} 5. Nc3 {[%clk 0:03:08.1]}
5... a6 {[%clk 0:02:59]} 6. h3 {[%clk 0:03:09.7]} 6... e6 {[%clk 0:02:47.8]} 7.
g4 {[%clk 0:03:08.7]} 7... b5 {[%clk 0:02:44.7]} 8. Bg2 {[%clk 0:03:04.2]} 8...
Bb7 {[%clk 0:02:45]} 9. O-O {[%clk 0:03:04.5]} 9... Nbd7 {[%clk 0:02:38.7]} 10.
Re1 {[%clk 0:02:59.1]} 10... Qc7 {[%clk 0:02:30.4]} 11. g5 {[%clk 0:02:57]}
11... Ng8 {[%clk 0:02:29]} 12. Nd5 {[%clk 0:02:49.6]} 12... exd5 {[%clk
0:02:07.7]} 13. exd5+ {[%clk 0:02:50.1]} 13... Be7 {[%clk 0:02:09.2]} 14. Bf4
{[%clk 0:02:46.5]} 14... Kf8 {[%clk 0:01:54.1]} 15. Nf5 {[%clk 0:02:39.1]} 15...
Ne5 {[%clk 0:01:38.2]} 16. Bxe5 {[%clk 0:02:39.3]} 16... dxe5 {[%clk 0:01:40.1]}
17. d6 {[%clk 0:02:41.2]} 17... Bxd6 {[%clk 0:01:41.6]} 18. Bxb7 {[%clk
0:02:28.9]} 18... Rd8 {[%clk 0:01:42.2]} 19. Qf3 {[%clk 0:02:22]} 19... g6
{[%clk 0:01:34.6]} 20. Nxd6 {[%clk 0:02:22.6]} 20... Rxd6 {[%clk 0:01:30.7]} 21.
Rxe5 {[%clk 0:02:09.6]} 21... Kg7 {[%clk 0:01:29.7]} 22. Re8 {[%clk 0:01:49]}
22... h6 {[%clk 0:01:21.5]} 23. Rc8 {[%clk 0:01:42.9]} 23... Qe7 {[%clk
0:01:12.4]} 24. Qc3+ {[%clk 0:01:43.6]} 24... Kh7 {[%clk 0:01:13.3]} 25. gxh6
{[%clk 0:01:38.9]} 25... Qg5+ {[%clk 0:01:10.5]} 26. Bg2 {[%clk 0:01:39.4]}
26... Qxh6 {[%clk 0:01:05.2]} 27. Qe5 {[%clk 0:01:25]} 27... Re6 {[%clk
0:01:04.3]} 28. Qb8 {[%clk 0:01:12.7]} 28... Qd2 {[%clk 0:00:56.1]} 29. Rf1
{[%clk 0:01:05.1]} 29... Kg7 {[%clk 0:00:51.2]} 30. Qa8 {[%clk 0:00:53.4]} 30...
Re5 {[%clk 0:00:31.6]} 31. Qxa6 {[%clk 0:00:41.5]} 31... Rg5 {[%clk 0:00:30.7]}
32. Qc6 {[%clk 0:00:42.1]} 32... b4 {[%clk 0:00:22.5]} 33. a3 {[%clk 0:00:39.8]}
33... Rh4 {[%clk 0:00:21.5]} 34. axb4 {[%clk 0:00:35.8]} 34... Nf6 {[%clk
0:00:22.8]} 35. Qc3 {[%clk 0:00:33.9]} 35... Qd5 {[%clk 0:00:20.9]} 36. f3
{[%clk 0:00:26.3]} 36... Rxh3 {[%clk 0:00:22.2]} 37. Rc6 {[%clk 0:00:23.7]}
37... Qf5 {[%clk 0:00:10.5]} 38. b5 {[%clk 0:00:12.8]} 38... Rhg3 {[%clk
0:00:04.7]} 39. Rf2 {[%clk 0:00:13.7]} 39... Rh5 {[%clk 0:00:03.7]} 40. b6
{[%clk 0:00:07.3]} 40... Qf4 {[%clk 0:00:03.7]} 41. b4 {[%clk 0:00:03.6]} 41...
Qc1+ {[%clk 0:00:04.1]} 42. Rf1 {[%clk 0:00:04.6]} 42... Qg5 {[%clk 0:00:05.9]}
43. Qxf6+ {[%clk 0:00:05.3]} 43... Qxf6 {[%clk 0:00:06.3]} 44. Rxf6 {[%clk
0:00:07.2]} 44... Kxf6 {[%clk 0:00:08.2]} 45. c4 {[%clk 0:00:08.9]} 45... Rhg5
{[%clk 0:00:06]} 46. Rf2 {[%clk 0:00:09.5]} 46... Rh3 {[%clk 0:00:06]} 47. b7
{[%clk 0:00:09.9]} 47... Rh8 {[%clk 0:00:07.3]} 48. c5 {[%clk 0:00:11.4]} 48...
Ke7 {[%clk 0:00:07]} 49. f4 {[%clk 0:00:11.4]} 49... Rg3 {[%clk 0:00:07.3]} 50.
Re2+ {[%clk 0:00:10.8]} 50... Kd7 {[%clk 0:00:07.6]} 51. c6+ {[%clk 0:00:12.3]}
51... Kc7 {[%clk 0:00:09.1]} 52. Re7+ {[%clk 0:00:13.7]} 52... Kb6 {[%clk
0:00:07.9]} 53. b5 {[%clk 0:00:15.1]} 53... Rc3 {[%clk 0:00:07.2]} 54. Bh3
{[%clk 0:00:11.2]} 54... Rcxh3 {[%clk 0:00:05.8]} 55. Rxf7 {[%clk 0:00:08.9]}
55... Rc3 {[%clk 0:00:06.6]} 56. Rf6 {[%clk 0:00:09.4]} 56... Re8 {[%clk
0:00:05.5]} 57. Re6 {[%clk 0:00:09.1]} 57... Rf8 {[%clk 0:00:04.6]} 58. Re4
{[%clk 0:00:07.9]} 58... Rc2 {[%clk 0:00:03.5]} 59. Ra4 {[%clk 0:00:08.6]} 59...
Rd8 {[%clk 0:00:04.1]} 60. Ra1 {[%clk 0:00:09.9]} 1-0

[Event "*** Titled Tuesday Blitz"]
[Site "Chess.com"]
[Date "2019.05.07"]
[Round "4"]
[White "Chebure"]
[Black "Orest_Vovk"]
[Result "0-1"]
[WhiteElo "2627"]
[BlackElo "2450"]
[TimeControl "180+2"]
[EndTime "13:58:30 PDT"]
[Termination "Orest_Vovk won by resignation"]

1. d4 {[%clk 0:03:01.9]} 1... e5 {[%clk 0:03:00.6]} 2. dxe5 {[%clk 0:03:02.3]}
2... Nc6 {[%clk 0:03:01]} 3. Nc3 {[%clk 0:03:03.4]} 3... Nxe5 {[%clk 0:03:00.6]}
4. e4 {[%clk 0:03:04.7]} 4... Bb4 {[%clk 0:03:00.1]} 5. Bd3 {[%clk 0:03:04.4]}
5... Nxd3+ {[%clk 0:02:58.4]} 6. Qxd3 {[%clk 0:03:04.6]} 6... d6 {[%clk
0:02:57.6]} 7. Ne2 {[%clk 0:03:05.3]} 7... Ne7 {[%clk 0:02:58]} 8. Bg5 {[%clk
0:02:58.1]} 8... O-O {[%clk 0:02:55.9]} 9. O-O-O {[%clk 0:02:54.5]} 9... Be6
{[%clk 0:02:49.8]} 10. f4 {[%clk 0:02:51.6]} 10... f6 {[%clk 0:02:44]} 11. Bh4
{[%clk 0:02:51.6]} 11... Qd7 {[%clk 0:02:41.7]} 12. h3 {[%clk 0:02:38.7]} 12...
a6 {[%clk 0:02:05.5]} 13. g4 {[%clk 0:02:35.6]} 13... b5 {[%clk 0:02:02.8]} 14.
f5 {[%clk 0:02:25.3]} 14... Bc4 {[%clk 0:01:59.3]} 15. Qf3 {[%clk 0:02:14.7]}
15... Nc6 {[%clk 0:01:48.7]} 16. Bg3 {[%clk 0:02:04.4]} 16... Rae8 {[%clk
0:01:40.2]} 17. a3 {[%clk 0:02:00.8]} 17... Bc5 {[%clk 0:01:34.2]} 18. h4 {[%clk
0:01:52.1]} 18... Ne5 {[%clk 0:01:33.9]} 19. Bxe5 {[%clk 0:01:52.3]} 19... Rxe5
{[%clk 0:01:33.7]} 20. Nf4 {[%clk 0:01:47.9]} 20... Rfe8 {[%clk 0:01:29.1]} 21.
g5 {[%clk 0:01:39.8]} 21... Qe7 {[%clk 0:01:10.7]} 22. Rde1 {[%clk 0:01:21.6]}
22... c6 {[%clk 0:00:55.2]} 23. Qg4 {[%clk 0:01:08.3]} 23... b4 {[%clk
0:00:44.4]} 24. gxf6 {[%clk 0:01:07.1]} 24... Qxf6 {[%clk 0:00:39]} 25. axb4
{[%clk 0:01:04.6]} 25... Bxb4 {[%clk 0:00:39.5]} 26. Qf3 {[%clk 0:00:58.7]}
26... Bf7 {[%clk 0:00:30.6]} 27. Rhg1 {[%clk 0:00:46.1]} 27... Kf8 {[%clk
0:00:21.2]} 28. Nd3 {[%clk 0:00:29.2]} 28... Bxc3 {[%clk 0:00:21.9]} 29. bxc3
{[%clk 0:00:28.9]} 29... Ra5 {[%clk 0:00:20.3]} 30. Kd2 {[%clk 0:00:29.9]} 30...
Ra3 {[%clk 0:00:17.8]} 31. Nb4 {[%clk 0:00:25.7]} 31... a5 {[%clk 0:00:12.9]}
32. Nxc6 {[%clk 0:00:23.5]} 32... Rc8 {[%clk 0:00:14.1]} 33. e5 {[%clk
0:00:20.7]} 33... dxe5 {[%clk 0:00:14.2]} 34. Nxe5 {[%clk 0:00:22]} 34... Qd6+
{[%clk 0:00:10.3]} 35. Qd3 {[%clk 0:00:21.5]} 35... Qxd3+ {[%clk 0:00:10.5]} 36.
cxd3 {[%clk 0:00:22]} 36... Raxc3 {[%clk 0:00:11.2]} 37. Nd7+ {[%clk 0:00:23.2]}
37... Kg8 {[%clk 0:00:11.8]} 38. f6 {[%clk 0:00:24]} 38... Bg6 {[%clk
0:00:10.7]} 39. fxg7 {[%clk 0:00:21.3]} 39... Rxd3+ {[%clk 0:00:11.8]} 40. Ke2
{[%clk 0:00:22.7]} 40... Rxd7 {[%clk 0:00:13.7]} 41. h5 {[%clk 0:00:23.1]} 41...
Re7+ {[%clk 0:00:14.2]} 42. Kf2 {[%clk 0:00:24.4]} 42... Rxe1 {[%clk 0:00:16.1]}
43. Rxe1 {[%clk 0:00:24.8]} 43... Bxh5 {[%clk 0:00:17.4]} 44. Re5 {[%clk
0:00:25.8]} 44... Bf7 {[%clk 0:00:18.3]} 45. Rxa5 {[%clk 0:00:26.5]} 45... Kxg7
{[%clk 0:00:19.9]} 46. Kg3 {[%clk 0:00:28.4]} 46... Rc3+ {[%clk 0:00:20.3]} 47.
Kh4 {[%clk 0:00:30.3]} 47... Rc4+ {[%clk 0:00:22.2]} 48. Kg5 {[%clk 0:00:30.8]}
48... h6+ {[%clk 0:00:23.1]} 49. Kf5 {[%clk 0:00:31.1]} 49... Rc6 {[%clk
0:00:23.8]} 50. Kf4 {[%clk 0:00:32]} 50... Rf6+ {[%clk 0:00:24.9]} 51. Kg4
{[%clk 0:00:33.1]} 51... Rg6+ {[%clk 0:00:26.8]} 52. Kh4 {[%clk 0:00:34.3]}
52... Rf6 {[%clk 0:00:27.6]} 53. Kg4 {[%clk 0:00:35.1]} 53... Rb6 {[%clk
0:00:27.9]} 54. Rc5 {[%clk 0:00:35.5]} 54... Rb4+ {[%clk 0:00:29]} 55. Kg3
{[%clk 0:00:35.2]} 55... Kf6 {[%clk 0:00:30.1]} 56. Rc6+ {[%clk 0:00:36]} 56...
Be6 {[%clk 0:00:31.4]} 57. Rc5 {[%clk 0:00:37.1]} 57... Re4 {[%clk 0:00:28.7]}
58. Kf3 {[%clk 0:00:36.6]} 58... Re5 {[%clk 0:00:29.2]} 59. Rc6 {[%clk
0:00:37.5]} 59... h5 {[%clk 0:00:29.9]} 60. Kg3 {[%clk 0:00:36.6]} 60... Re4
{[%clk 0:00:28.9]} 61. Rc5 {[%clk 0:00:35.8]} 61... h4+ {[%clk 0:00:29.5]} 62.
Kf3 {[%clk 0:00:33.9]} 62... Bf5 {[%clk 0:00:29.8]} 63. Rc6+ {[%clk 0:00:32.1]}
63... Kg5 {[%clk 0:00:30.9]} 64. Rc7 {[%clk 0:00:32.4]} 64... Ra4 {[%clk
0:00:29.1]} 65. Rg7+ {[%clk 0:00:33.3]} 65... Bg6 {[%clk 0:00:30.2]} 66. Rc7
{[%clk 0:00:31.3]} 66... Ra3+ {[%clk 0:00:31]} 67. Kf2 {[%clk 0:00:31.8]} 67...
h3 {[%clk 0:00:31.2]} 68. Rc6 {[%clk 0:00:32.6]} 68... Be4 {[%clk 0:00:28.6]}
69. Rc5+ {[%clk 0:00:31.5]} 69... Kg4 {[%clk 0:00:26.6]} 70. Rc8 {[%clk
0:00:31.8]} 70... h2 {[%clk 0:00:25.9]} 71. Rg8+ {[%clk 0:00:33.1]} 71... Kf4
{[%clk 0:00:26.1]} 72. Rf8+ {[%clk 0:00:33.4]} 72... Ke5 {[%clk 0:00:27.2]} 73.
Re8+ {[%clk 0:00:34.7]} 73... Kd4 {[%clk 0:00:28.3]} 74. Rd8+ {[%clk 0:00:35.9]}
74... Bd5 {[%clk 0:00:29.4]} 0-1

[Event "*** Titled Tuesday Blitz"]
[Site "Chess.com"]
[Date "2019.05.07"]
[Round "4"]
[White "AlexandraBotez"]
[Black "Chessdude1987"]
[Result "0-1"]
[WhiteElo "1988"]
[BlackElo "2110"]
[TimeControl "180+2"]
[EndTime "13:58:48 PDT"]
[Termination "Chessdude1987 won by resignation"]

1. d4 {[%clk 0:03:00.7]} 1... e6 {[%clk 0:02:59.4]} 2. Nf3 {[%clk 0:02:58.8]}
2... f5 {[%clk 0:02:59.7]} 3. g3 {[%clk 0:02:58]} 3... Nf6 {[%clk 0:03:00.6]} 4.
Bg2 {[%clk 0:02:58.4]} 4... Be7 {[%clk 0:02:59.8]} 5. O-O {[%clk 0:02:57.9]}
5... O-O {[%clk 0:03:00.7]} 6. c4 {[%clk 0:02:57.1]} 6... d6 {[%clk 0:03:01.5]}
7. Nc3 {[%clk 0:02:57.9]} 7... a5 {[%clk 0:03:02.2]} 8. Re1 {[%clk 0:02:57.9]}
8... Ne4 {[%clk 0:02:55.5]} 9. Nd2 {[%clk 0:02:56.3]} 9... Nxd2 {[%clk
0:02:41.7]} 10. Bxd2 {[%clk 0:02:55]} 10... e5 {[%clk 0:02:42.6]} 11. e3 {[%clk
0:02:51.8]} 11... c6 {[%clk 0:02:32]} 12. Qc2 {[%clk 0:02:38.2]} 12... Na6
{[%clk 0:02:12.6]} 13. a3 {[%clk 0:02:31.2]} 13... Bd7 {[%clk 0:02:12.1]} 14.
Rab1 {[%clk 0:02:30]} 14... Bf6 {[%clk 0:02:06.9]} 15. Ne2 {[%clk 0:02:23.2]}
15... e4 {[%clk 0:01:59.1]} 16. h4 {[%clk 0:02:21.7]} 16... h6 {[%clk
0:01:57.4]} 17. d5 {[%clk 0:02:16.5]} 17... a4 {[%clk 0:01:38.9]} 18. Bc3 {[%clk
0:02:16.1]} 18... Nc5 {[%clk 0:01:37.6]} 19. Nf4 {[%clk 0:01:56.4]} 19... g5
{[%clk 0:01:30.7]} 20. Bxf6 {[%clk 0:01:48.8]} 20... Qxf6 {[%clk 0:01:30.8]} 21.
hxg5 {[%clk 0:01:50]} 21... hxg5 {[%clk 0:01:31.3]} 22. Ne2 {[%clk 0:01:50]}
22... Rf7 {[%clk 0:01:30.9]} 23. Red1 {[%clk 0:01:38.1]} 23... Nd3 {[%clk
0:01:18.6]} 24. Rxd3 {[%clk 0:01:38.4]} 24... exd3 {[%clk 0:01:19.2]} 25. Qxd3
{[%clk 0:01:40.3]} 25... cxd5 {[%clk 0:01:17]} 26. Bxd5 {[%clk 0:01:40.8]} 26...
Be6 {[%clk 0:01:18.1]} 27. Nc3 {[%clk 0:01:37.8]} 27... Bxd5 {[%clk 0:01:13.3]}
28. Nxd5 {[%clk 0:01:38.3]} 28... Qe5 {[%clk 0:01:14.1]} 29. b4 {[%clk
0:01:24.1]} 29... Qe4 {[%clk 0:01:09]} 30. Qxe4 {[%clk 0:01:19.6]} 30... fxe4
{[%clk 0:01:09.7]} 31. Kg2 {[%clk 0:01:16.4]} 31... Kg7 {[%clk 0:01:09.3]} 32.
Nc3 {[%clk 0:01:11]} 32... Re8 {[%clk 0:00:55.7]} 33. Nxa4 {[%clk 0:01:09]}
33... Ra8 {[%clk 0:00:56.1]} 34. Nc3 {[%clk 0:01:09.2]} 34... Re7 {[%clk
0:00:44.2]} 35. Nd5 {[%clk 0:01:00]} 35... Re5 {[%clk 0:00:44.9]} 36. Rb3 {[%clk
0:01:00.7]} 36... b5 {[%clk 0:00:41.7]} 37. Nb6 {[%clk 0:00:56.9]} 37... bxc4
{[%clk 0:00:41.4]} 38. Nxc4 {[%clk 0:00:56.6]} 38... Re6 {[%clk 0:00:39.3]} 39.
Nb6 {[%clk 0:00:51.4]} 39... Ra6 {[%clk 0:00:37.9]} 40. Nd5 {[%clk 0:00:52.4]}
40... Re5 {[%clk 0:00:36.6]} 41. b5 {[%clk 0:00:49.3]} 41... Ra8 {[%clk
0:00:24.7]} 42. Nc7 {[%clk 0:00:47.3]} 42... Rb8 {[%clk 0:00:24.2]} 43. b6
{[%clk 0:00:47.1]} 43... Kf6 {[%clk 0:00:19.3]} 44. b7 {[%clk 0:00:27.3]} 44...
Ra5 {[%clk 0:00:19.5]} 45. Rb6 {[%clk 0:00:19.1]} 45... Ke7 {[%clk 0:00:19]} 46.
Nd5+ {[%clk 0:00:16.7]} 46... Rxd5 {[%clk 0:00:19.3]} 47. Rb4 {[%clk 0:00:15.2]}
47... Ra5 {[%clk 0:00:19.1]} 48. Rxe4+ {[%clk 0:00:15.8]} 48... Kf6 {[%clk
0:00:19.9]} 49. Rd4 {[%clk 0:00:15.7]} 49... d5 {[%clk 0:00:19.7]} 50. Rb4
{[%clk 0:00:11.7]} 50... Ra7 {[%clk 0:00:19.1]} 51. Rb5 {[%clk 0:00:11.5]} 51...
Rbxb7 {[%clk 0:00:18]} 52. Rxd5 {[%clk 0:00:12.2]} 52... Rxa3 {[%clk 0:00:18.8]}
53. Rd6+ {[%clk 0:00:11.8]} 53... Ke5 {[%clk 0:00:18.9]} 54. Rg6 {[%clk
0:00:10.8]} 54... Kf5 {[%clk 0:00:19.4]} 55. Rg8 {[%clk 0:00:11.6]} 55... g4
{[%clk 0:00:17.6]} 56. Rf8+ {[%clk 0:00:12.1]} 56... Ke4 {[%clk 0:00:17.7]} 57.
Rf4+ {[%clk 0:00:12.8]} 57... Kd3 {[%clk 0:00:18.7]} 58. Rxg4 {[%clk 0:00:14.2]}
58... Rf7 {[%clk 0:00:19.4]} 59. Rd4+ {[%clk 0:00:14.8]} 59... Ke2 {[%clk
0:00:19.9]} 60. Rf4 {[%clk 0:00:09.2]} 60... Rxf4 {[%clk 0:00:20]} 61. gxf4
{[%clk 0:00:10.1]} 61... Ra8 {[%clk 0:00:14.8]} 62. e4 {[%clk 0:00:03.6]} 62...
Rg8+ {[%clk 0:00:14.9]} 63. Kh3 {[%clk 0:00:04.7]} 63... Kf3 {[%clk 0:00:13.7]}
64. Kh4 {[%clk 0:00:04.6]} 64... Kxf4 {[%clk 0:00:14.4]} 0-1

[Event "*** Titled Tuesday Blitz"]
[Site "Chess.com"]
[Date "2019.05.07"]
[Round "4"]
[White "Vincent_Vega95"]
[Black "Orange_Ghost"]
[Result "0-1"]
[WhiteElo "2660"]
[BlackElo "2668"]
[TimeControl "180+2"]
[EndTime "13:59:06 PDT"]
[Termination "Orange_Ghost won on time"]

1. d4 {[%clk 0:02:59.1]} 1... Nf6 {[%clk 0:03:00.3]} 2. c4 {[%clk 0:02:55.5]}
2... g6 {[%clk 0:03:00.8]} 3. Nc3 {[%clk 0:02:55.6]} 3... d5 {[%clk 0:03:00.9]}
4. cxd5 {[%clk 0:02:56.4]} 4... Nxd5 {[%clk 0:03:02.8]} 5. e4 {[%clk 0:02:56.9]}
5... Nxc3 {[%clk 0:03:03.7]} 6. bxc3 {[%clk 0:02:58.8]} 6... Bg7 {[%clk
0:03:04.7]} 7. Nf3 {[%clk 0:02:59.7]} 7... c5 {[%clk 0:03:04.7]} 8. Rb1 {[%clk
0:03:00.7]} 8... O-O {[%clk 0:03:04.3]} 9. Be2 {[%clk 0:03:01.2]} 9... b6 {[%clk
0:03:01.3]} 10. O-O {[%clk 0:02:59.3]} 10... Bb7 {[%clk 0:03:01.8]} 11. Bd3
{[%clk 0:02:59.7]} 11... Qc7 {[%clk 0:03:01.9]} 12. Bg5 {[%clk 0:02:55.6]} 12...
Nd7 {[%clk 0:02:47.8]} 13. Qe2 {[%clk 0:02:50.7]} 13... Nf6 {[%clk 0:02:26.6]}
14. d5 {[%clk 0:02:15.9]} 14... Rac8 {[%clk 0:02:08.8]} 15. c4 {[%clk
0:02:13.7]} 15... Nh5 {[%clk 0:01:54.3]} 16. e5 {[%clk 0:01:24.5]} 16... f6
{[%clk 0:01:47.7]} 17. Bd2 {[%clk 0:01:25.2]} 17... fxe5 {[%clk 0:01:42.7]} 18.
Ng5 {[%clk 0:01:26]} 18... Nf4 {[%clk 0:01:27.6]} 19. Bxf4 {[%clk 0:01:24.5]}
19... exf4 {[%clk 0:01:24.8]} 20. Ne6 {[%clk 0:01:08.8]} 20... Qd6 {[%clk
0:01:24.9]} 21. Nxf8 {[%clk 0:01:06.6]} 21... Rxf8 {[%clk 0:01:26.8]} 22. Rfe1
{[%clk 0:01:02.3]} 22... Rf7 {[%clk 0:01:12.6]} 23. Qg4 {[%clk 0:00:54.3]} 23...
f3 {[%clk 0:01:01]} 24. g3 {[%clk 0:00:44.8]} 24... Qf6 {[%clk 0:00:54.9]} 25.
Qe6 {[%clk 0:00:32.1]} 25... Qd4 {[%clk 0:00:42.3]} 26. Bf1 {[%clk 0:00:24.5]}
26... Bf6 {[%clk 0:00:39.3]} 27. Red1 {[%clk 0:00:17.8]} 27... Qc3 {[%clk
0:00:29.4]} 28. d6 {[%clk 0:00:18.3]} 28... exd6 {[%clk 0:00:22.1]} 29. Rxd6
{[%clk 0:00:19.5]} 29... Bd4 {[%clk 0:00:11.4]} 30. Qe1 {[%clk 0:00:07.1]} 30...
Qc2 {[%clk 0:00:11]} 31. Rd1 {[%clk 0:00:06.3]} 31... Qf5 {[%clk 0:00:09.1]} 32.
Bd3 {[%clk 0:00:05.9]} 32... Qg5 {[%clk 0:00:09.2]} 33. Qe6 {[%clk 0:00:04.1]}
33... Kg7 {[%clk 0:00:09.1]} 34. Rd7 {[%clk 0:00:05.4]} 34... Qf6 {[%clk
0:00:05.7]} 35. Rxf7+ {[%clk 0:00:06]} 35... Qxf7 {[%clk 0:00:07.6]} 36. Qxf7+
{[%clk 0:00:07.9]} 36... Kxf7 {[%clk 0:00:09.5]} 37. Re1 {[%clk 0:00:09.8]}
37... Bc3 {[%clk 0:00:10.4]} 38. Rc1 {[%clk 0:00:10.2]} 38... Bd4 {[%clk
0:00:11.4]} 39. Kf1 {[%clk 0:00:11]} 39... Kf6 {[%clk 0:00:12.7]} 40. h4 {[%clk
0:00:11.9]} 40... h5 {[%clk 0:00:12.7]} 41. Rc2 {[%clk 0:00:12.5]} 41... Bc8
{[%clk 0:00:13.8]} 42. Be4 {[%clk 0:00:12.9]} 42... Bh3+ {[%clk 0:00:13.9]} 43.
Ke1 {[%clk 0:00:13.7]} 43... Bg4 {[%clk 0:00:14.7]} 44. Rd2 {[%clk 0:00:11.4]}
44... Bc3 {[%clk 0:00:15.4]} 45. Kd1 {[%clk 0:00:12.5]} 45... Bxd2 {[%clk
0:00:14.3]} 46. Kxd2 {[%clk 0:00:14.4]} 46... g5 {[%clk 0:00:14.7]} 47. Ke3
{[%clk 0:00:14.5]} 47... Be6 {[%clk 0:00:11]} 48. Bd3 {[%clk 0:00:12.9]} 48...
gxh4 {[%clk 0:00:09]} 49. gxh4 {[%clk 0:00:13.8]} 49... Ke5 {[%clk 0:00:10.1]}
50. Bf1 {[%clk 0:00:10.3]} 50... Bg4 {[%clk 0:00:10.2]} 51. Bd3 {[%clk
0:00:10.8]} 51... a6 {[%clk 0:00:10.8]} 52. a3 {[%clk 0:00:12.3]} 52... Be6
{[%clk 0:00:09]} 53. Bf1 {[%clk 0:00:11.9]} 53... Bd7 {[%clk 0:00:08.2]} 54. Bd3
{[%clk 0:00:12.5]} 54... b5 {[%clk 0:00:09.3]} 55. cxb5 {[%clk 0:00:11.9]} 55...
axb5 {[%clk 0:00:11.2]} 56. Kxf3 {[%clk 0:00:13.2]} 56... c4 {[%clk 0:00:10]}
57. Bg6 {[%clk 0:00:14.5]} 57... Kd4 {[%clk 0:00:06.7]} 58. Ke2 {[%clk
0:00:15.6]} 58... Bg4+ {[%clk 0:00:07.5]} 59. f3 {[%clk 0:00:16.8]} 59... Be6
{[%clk 0:00:07.9]} 60. Bxh5 {[%clk 0:00:17.9]} 60... Bf5 {[%clk 0:00:09.2]} 61.
Bg4 {[%clk 0:00:18]} 61... Bh7 {[%clk 0:00:08.9]} 62. f4 {[%clk 0:00:19.3]}
62... Kc3 {[%clk 0:00:05.9]} 63. Bd7 {[%clk 0:00:19.3]} 63... Kb3 {[%clk
0:00:05.1]} 64. Bxb5 {[%clk 0:00:10.7]} 64... c3 {[%clk 0:00:06.4]} 0-1